bitfinex/quotes_BTCUSD_20250825
["timestamp","ask_amount","ask_price","bid_price","bid_amount"]
[1756144796365,0.03150956,112660.0,112650.0,0.25893046]
[1756144796574,0.03150956,112660.0,112650.0,1.37638723]
[1756144796804,0.01489598,112660.0,112650.0,1.37638723]
[1756144797219,0.01489598,112660.0,112650.0,1.37938723]
[1756144797826,0.01472651,112660.0,112650.0,1.37938723]
[1756144798846,0.01472651,112660.0,112650.0,1.37926723]
[1756144800494,0.01472651,112660.0,112650.0,1.71926723]
[1756144800981,0.01455704,112660.0,112650.0,1.71926723]
[1756144801220,0.01455704,112660.0,112650.0,1.81926723]
[1756144801437,1e-08,112660.0,112650.0,1.81926723]
[1756144801645,0.000653,112690.0,112680.0,0.17749378]
[1756144801850,0.000653,112690.0,112680.0,1.36536055]
[1756144802066,0.000653,112690.0,112680.0,2.22942355]
[1756144802279,0.000653,112690.0,112680.0,2.56942355]
[1756144802490,0.000653,112690.0,112680.0,1.55622055]
[1756144802697,0.000653,112690.0,112680.0,0.50729755]
[1756144802912,0.000653,112690.0,112680.0,0.50733755]
[1756144803115,0.001653,112690.0,112680.0,0.51133755]
[1756144803304,0.001653,112690.0,112680.0,0.51129755]
[1756144803305,0.17913103,112690.0,112680.0,0.51129755]
[1756144803744,0.17913103,112690.0,112680.0,0.4284128]
[1756144804169,0.001653,112690.0,112680.0,0.4284128]
[1756144804415,0.000653,112690.0,112680.0,0.4204128]
[1756144804665,0.000653,112690.0,112680.0,1.2834958]
[1756144804913,0.000653,112690.0,112680.0,1.2814958]
[1756144805157,0.17813103,112690.0,112680.0,0.09075902]
[1756144805384,0.17813103,112690.0,112680.0,0.24299902]
[1756144805622,0.17813103,112690.0,112680.0,0.4204928]
[1756144806247,0.17813103,112690.0,112680.0,0.4234928]
[1756144806675,0.17813103,112690.0,112680.0,0.4235328]
[1756144806894,0.000653,112690.0,112680.0,0.4235328]
[1756144807594,0.17813103,112690.0,112680.0,0.4234528]
[1756144808541,0.17813103,112690.0,112680.0,0.07631]
[1756144808770,0.17813103,112690.0,112680.0,0.22851]
[1756144809472,0.17813103,112690.0,112680.0,0.22551]
[1756144809686,0.17813103,112690.0,112680.0,0.07331]
[1756144809898,0.17813103,112690.0,112680.0,0.07326]
[1756144810119,0.17813103,112690.0,112680.0,0.22534]
[1756144810561,0.17813103,112690.0,112680.0,0.40488378]
[1756144810779,0.17813103,112690.0,112680.0,0.40688378]
[1756144811196,0.17813103,112690.0,112680.0,0.22939]
[1756144811659,0.17813103,112690.0,112680.0,0.07731]
[1756144811779,0.17813103,112690.0,112680.0,0.22935]
[1756144812210,0.17813103,112690.0,112680.0,0.2273]
[1756144812428,0.17813103,112690.0,112680.0,0.22432]
[1756144813101,0.17813103,112690.0,112680.0,0.15604]
[1756144813321,1.03921403,112690.0,112680.0,0.15604]
[1756144813536,0.17813103,112690.0,112680.0,0.15604]
[1756144813752,1.03921403,112690.0,112680.0,0.15204]
[1756144814615,1.03921403,112690.0,112680.0,0.15304]
[1756144815300,1.03921403,112690.0,112680.0,0.153]
[1756144815516,1.03921403,112690.0,112680.0,0.001]
[1756144815739,1.03921403,112690.0,112680.0,0.15296]
[1756144816006,1.03921403,112690.0,112680.0,0.15196]
[1756144816226,0.17750954,112670.0,112660.0,0.02042902]
[1756144816443,1.03859254,112670.0,112660.0,0.00298]
[1756144816661,1.03859254,112670.0,112660.0,0.15695]
[1756144816911,1.03859254,112670.0,112660.0,0.33447529]
[1756144817133,0.17750954,112670.0,112660.0,0.33447529]
[1756144817351,0.17752529,112660.0,112650.0,0.33469948]
[1756144817567,0.17752529,112660.0,112650.0,0.57555423]
[1756144817786,1.03859254,112670.0,112660.0,0.002]
[1756144817979,1.03859254,112670.0,112660.0,0.00405]
[1756144818235,1.03859254,112670.0,112660.0,0.002]
[1756144818476,1.19047254,112670.0,112660.0,0.002]
[1756144818928,1.22395898,112670.0,112660.0,0.002]
[1756144819159,6.43821098,112670.0,112660.0,0.002]
[1756144819386,1.03860829,112660.0,112650.0,0.00032778]
[1756144819620,0.17755681,112640.0,112630.0,0.0002]
[1756144819868,2.06819247,112640.0,112630.0,0.0002]
[1756144820096,6.94240447,112640.0,112630.0,0.00034395]
[1756144820340,7.00259891,112640.0,112630.0,0.00034395]
[1756144820578,6.81723247,112640.0,112630.0,0.00034395]
[1756144820818,6.96911247,112640.0,112630.0,0.00034395]
[1756144821057,1.08389747,112640.0,112630.0,0.00034395]
[1756144821271,1.08189747,112640.0,112630.0,0.00034395]
[1756144821489,1.22445036,112640.0,112630.0,0.00034395]
[1756144821704,1.22753036,112640.0,112630.0,0.00034395]
[1756144822134,1.22749036,112640.0,112630.0,0.00034395]
[1756144822350,1.25633339,112640.0,112630.0,0.00034395]
[1756144822774,1.25929339,112640.0,112630.0,0.00034395]
[1756144822991,6.13354539,112640.0,112630.0,0.00034395]
[1756144823201,5.97866539,112640.0,112630.0,0.00034395]
[1756144823430,5.94982236,112640.0,112630.0,0.00034395]
[1756144823777,1.22545036,112640.0,112630.0,0.00034395]
[1756144823981,1.22645036,112640.0,112630.0,0.00034395]
[1756144824186,1.22545036,112640.0,112630.0,0.00034395]
[1756144824391,1.22745036,112640.0,112630.0,0.00034395]
[1756144824805,1.31432001,112640.0,112630.0,0.00034395]
[1756144825879,1.3282198,112640.0,112630.0,0.00034395]
[1756144826083,6.11560215,112640.0,112630.0,0.00034395]
[1756144828159,1.08947015,112640.0,112630.0,0.00567395]
[1756144828376,1.24123015,112640.0,112630.0,0.00567395]
[1756144828837,1.24123015,112640.0,112630.0,0.00034395]
[1756144829302,6.11548215,112640.0,112630.0,0.00034395]
[1756144829561,6.11542838,112640.0,112630.0,0.00034395]
[1756144829922,5.96366838,112640.0,112630.0,0.00034395]
[1756144830116,6.11554838,112640.0,112630.0,0.00034395]
[1756144830538,6.1155483,112640.0,112630.0,0.00034395]
[1756144835547,6.45571455,112640.0,112630.0,0.00034395]
[1756144835767,6.45931455,112640.0,112630.0,0.00034395]
[1756144836229,6.45931455,112640.0,112620.0,0.0004]
[1756144836451,6.41973197,112630.0,112620.0,0.0004]
[1756144836658,6.43622778,112630.0,112620.0,0.0004]
[1756144837932,5.44180683,112630.0,112620.0,0.0004]
[1756144838162,6.40270134,112630.0,112620.0,0.0004]
[1756144838593,5.56004039,112630.0,112620.0,0.00573]
[1756144838812,6.40270134,112630.0,112620.0,0.00573]
[1756144839077,1.52852934,112630.0,112620.0,0.00573]
[1756144839278,1.52855573,112630.0,112620.0,0.00573]
[1756144839503,1.54566262,112630.0,112620.0,0.00573]
[1756144840156,1.54566451,112630.0,112620.0,0.00573]
[1756144840387,1.39386451,112630.0,112620.0,0.00573]
[1756144840617,0.34585667,112630.0,112620.0,0.00573]
[1756144840831,1.18851762,112630.0,112620.0,0.00573]
[1756144841054,1.03675762,112630.0,112620.0,0.00573]
[1756144841702,1.18851762,112630.0,112620.0,0.0004]
[1756144841931,6.09639634,112630.0,112620.0,0.0004]
[1756144842158,6.52326599,112630.0,112620.0,0.0004]
[1756144843262,6.55061825,112630.0,112620.0,0.0004]
[1756144843930,6.55261825,112630.0,112620.0,0.0004]
[1756144844183,6.55882997,112630.0,112620.0,0.0004]
[1756144844382,6.59975569,112630.0,112620.0,0.0004]
[1756144845456,6.623647,112630.0,112620.0,0.0004]
[1756144845662,6.637549,112630.0,112620.0,0.0004]
[1756144846100,6.705869,112630.0,112620.0,0.0004]
[1756144846334,6.705869,112630.0,112610.0,1e-08]
[1756144846335,2.23653697,112620.0,112610.0,1e-08]
[1756144846571,2.23653697,112620.0,112600.0,1e-08]
[1756144846572,0.51760412,112610.0,112600.0,1e-08]
[1756144846859,0.51760412,112610.0,112590.0,0.0034]
[1756144846860,0.17761989,112600.0,112590.0,0.0034]
[1756144847075,6.08401204,112600.0,112590.0,0.0002]
[1756144847293,0.17763566,112590.0,112580.0,0.0002]
[1756144847536,6.08402781,112590.0,112580.0,0.0002]
[1756144847755,1.20977581,112590.0,112580.0,0.0002]
[1756144848181,1.21600641,112590.0,112580.0,0.0002]
[1756144848836,6.09763643,112590.0,112580.0,0.0002]
[1756144849052,6.11425188,112590.0,112580.0,0.0002]
[1756144849494,6.11781383,112590.0,112580.0,0.0002]
[1756144849923,6.05088928,112590.0,112580.0,0.0032]
[1756144851053,5.89700928,112590.0,112580.0,0.00853]
[1756144851259,6.05076928,112590.0,112580.0,0.00853]
[1756144851465,6.05076928,112590.0,112580.0,0.0064]
[1756144852558,6.05072928,112590.0,112580.0,0.0064]
[1756144852956,5.89700928,112590.0,112580.0,0.0064]
[1756144853193,5.89700928,112590.0,112580.0,0.00853]
[1756144853385,6.05064928,112590.0,112580.0,0.0064]
[1756144853628,6.05064928,112590.0,112580.0,0.00853]
[1756144853831,6.04441846,112590.0,112580.0,0.00853]
[1756144854034,6.04441846,112590.0,112580.0,0.0064]
[1756144855304,6.04441846,112590.0,112580.0,0.00641]
[1756144855774,5.89077846,112590.0,112580.0,0.00641]
[1756144855983,6.26846785,112590.0,112580.0,1e-08]
[1756144856633,6.42202785,112590.0,112580.0,1e-08]
[1756144857282,0.17765144,112580.0,112570.0,0.0002]
[1756144857475,6.06473984,112580.0,112570.0,0.0002]
[1756144857894,5.91117984,112580.0,112570.0,0.0002]
[1756144858073,6.08217006,112580.0,112570.0,0.0002]
[1756144858539,5.91203461,112580.0,112570.0,0.0002]
[1756144858780,6.453595,112580.0,112570.0,0.0002]
[1756144859006,6.4598083,112580.0,112570.0,0.0002]
[1756144859219,6.29071896,112580.0,112570.0,0.0022]
[1756144859431,6.4292957,112580.0,112570.0,0.0022]
[1756144859856,6.4292957,112580.0,112570.0,0.0002]
[1756144859857,6.2748157,112580.0,112570.0,0.0002]
[1756144860070,6.4282957,112580.0,112570.0,0.0002]
[1756144860290,5.43315475,112580.0,112570.0,0.00653]
[1756144860508,6.4292157,112580.0,112570.0,0.00653]
[1756144860739,5.43315475,112580.0,112570.0,0.00653]
[1756144860962,5.92960268,112580.0,112570.0,0.00653]
[1756144861168,6.08320268,112580.0,112570.0,0.00653]
[1756144861379,6.08319735,112580.0,112570.0,0.00653]
[1756144861606,1.20894535,112580.0,112570.0,0.00653]
[1756144861839,0.2091214,112580.0,112570.0,0.18641806]
[1756144862043,0.2091214,112580.0,112570.0,0.18419722]
[1756144862301,0.19521418,112580.0,112570.0,0.00653]
[1756144862510,0.19421418,112580.0,112570.0,0.00775084]
[1756144862727,1.03687513,112580.0,112570.0,0.00775084]
[1756144862941,1.03887513,112580.0,112570.0,0.18741806]
[1756144863121,1.03687513,112580.0,112570.0,0.00653]
[1756144863352,0.19421418,112580.0,112570.0,0.00875084]
[1756144863584,0.19521418,112580.0,112570.0,0.00975084]
[1756144863791,1.03787513,112580.0,112570.0,0.00753]
[1756144864201,1.19143513,112580.0,112570.0,0.00753]
[1756144864404,0.34877418,112580.0,112570.0,0.00753]
[1756144864616,1.19143513,112580.0,112570.0,0.00753]
[1756144865504,1.20534126,112580.0,112570.0,0.00753]
[1756144866865,1.20534126,112580.0,112570.0,0.00541]
[1756144867298,1.22445335,112580.0,112570.0,0.0022]
[1756144867516,1.23274222,112580.0,112570.0,0.0022]
[1756144867745,6.44699422,112580.0,112570.0,0.0022]
[1756144867989,6.45321115,112580.0,112570.0,0.0022]
[1756144868444,6.48468251,112580.0,112570.0,0.0022]
[1756144868661,6.45321146,112580.0,112570.0,0.0022]
[1756144869550,6.47708409,112580.0,112570.0,0.0022]
[1756144869770,0.17768301,112560.0,112550.0,0.00341]
[1756144870075,1.19040146,112560.0,112550.0,0.00553]
[1756144870620,1.20430982,112560.0,112550.0,0.00553]
[1756144871075,1.20430982,112560.0,112550.0,0.00067931]
[1756144871324,1.20430982,112560.0,112550.0,0.00388931]
[1756144871548,1.22342201,112560.0,112550.0,0.00688931]
[1756144871777,1.25014701,112560.0,112550.0,0.00367931]
[1756144872026,0.25400606,112560.0,112550.0,0.00688931]
[1756144872266,1.23719865,112560.0,112550.0,0.01300931]
[1756144872954,1.08375865,112560.0,112550.0,0.01000931]
[1756144873436,0.3944177,112560.0,112550.0,0.01000931]
[1756144873660,0.2400977,112560.0,112550.0,0.00600931]
[1756144873904,1.08275865,112560.0,112550.0,0.00600931]
[1756144874097,1.19136146,112560.0,112550.0,0.00800931]
[1756144874380,1.19136146,112560.0,112550.0,0.00900931]
[1756144874603,1.19136146,112560.0,112550.0,0.18892934]
[1756144874604,0.0175775,112560.0,112550.0,0.18892934]
[1756144874834,0.0175775,112560.0,112550.0,0.18670811]
[1756144875061,0.0143275,112560.0,112550.0,1.13270283]
[1756144875279,0.0143275,112560.0,112550.0,1.13470283]
[1756144875496,0.0143275,112560.0,112550.0,0.29204188]
[1756144875948,0.0143275,112560.0,112550.0,0.29004188]
[1756144876184,0.0133275,112560.0,112550.0,0.29004188]
[1756144876467,0.0143275,112560.0,112550.0,0.29404188]
[1756144876696,1.02034396,112560.0,112550.0,0.00800931]
[1756144877164,1.02338396,112560.0,112550.0,0.01079931]
[1756144877385,1.02238396,112560.0,112550.0,0.00067931]
[1756144877625,1.03729194,112560.0,112550.0,0.00567931]
[1756144878080,1.03729194,112560.0,112550.0,0.00967931]
[1756144878267,1.04023194,112560.0,112550.0,0.00967931]
[1756144878529,1.04023194,112560.0,112550.0,0.00567931]
[1756144878756,1.03729194,112560.0,112550.0,0.00567931]
[1756144878985,1.03629194,112560.0,112550.0,0.00267931]
[1756144879249,1.03629194,112560.0,112550.0,0.00367931]
[1756144879250,1.04023194,112560.0,112550.0,0.00367931]
[1756144879474,1.04023194,112560.0,112550.0,0.00067931]
[1756144879918,1.04703903,112560.0,112550.0,0.00067931]
[1756144880116,1.04960303,112560.0,112550.0,0.00067931]
[1756144880329,1.05060303,112560.0,112550.0,0.00067931]
[1756144880545,1.05354303,112560.0,112550.0,0.00067931]
[1756144881231,1.05354303,112560.0,112550.0,0.00167931]
[1756144881707,1.05354303,112560.0,112550.0,0.00067931]
[1756144882124,1.03963505,112560.0,112550.0,0.00167931]
[1756144882562,1.0587599,112560.0,112550.0,0.00167931]
[1756144882799,1.0558199,112560.0,112550.0,0.00379931]
[1756144883024,1.2092199,112560.0,112550.0,0.00379931]
[1756144883233,1.2092199,112560.0,112550.0,0.00167931]
[1756144883459,1.2121599,112560.0,112550.0,0.00167931]
[1756144883654,1.03963505,112560.0,112550.0,0.00167931]
[1756144883913,1.19295505,112560.0,112550.0,0.00167931]
[1756144884312,1.21207358,112560.0,112550.0,0.00167931]
[1756144884918,1.20913358,112560.0,112550.0,0.00167931]
[1756144885118,6.09254939,112560.0,112550.0,0.00167931]
[1756144885286,6.10023446,112560.0,112550.0,0.00167931]
[1756144885720,6.15944659,112560.0,112550.0,0.00167931]
[1756144886101,6.10645813,112560.0,112550.0,0.00167931]
[1756144886242,6.10645789,112560.0,112550.0,0.00167931]
[1756144886864,6.12305298,112560.0,112550.0,0.00167931]
[1756144887823,6.12003298,112560.0,112550.0,0.00167931]
[1756144888253,6.11380955,112560.0,112550.0,0.00167931]
[1756144889429,0.37573807,112560.0,112550.0,0.00691931]
[1756144889681,0.21893407,112560.0,112550.0,0.00691931]
[1756144890539,0.36342698,112560.0,112550.0,0.18461811]
[1756144890787,0.36342698,112560.0,112550.0,0.00691931]
[1756144891007,0.37249001,112560.0,112550.0,0.00691931]
[1756144891229,0.35858113,112560.0,112550.0,0.00691931]
[1756144891453,0.3495181,112560.0,112550.0,0.00691931]
[1756144892571,0.1962781,112560.0,112550.0,0.18461811]
[1756144892797,0.01859509,112560.0,112550.0,0.18461811]
[1756144893082,0.002,112560.0,112550.0,0.18461811]
[1756144893333,0.002,112560.0,112550.0,0.20206713]
[1756144893587,0.002,112560.0,112550.0,1.28485283]
[1756144893811,0.17766722,112570.0,112560.0,0.17767039]
[1756144894059,0.17868301,112560.0,112550.0,0.09248833]
[1756144894300,1.02134396,112560.0,112550.0,0.00874931]
[1756144894532,1.17494396,112560.0,112550.0,0.00991931]
[1756144894980,1.19155191,112560.0,112550.0,0.00991931]
[1756144895440,1.19055191,112560.0,112550.0,0.01091931]
[1756144895910,1.19182191,112560.0,112550.0,0.01374931]
[1756144896143,1.20573377,112560.0,112550.0,0.01374931]
[1756144896570,1.20473377,112560.0,112550.0,0.00274931]
[1756144896784,1.20573377,112560.0,112550.0,0.00774931]
[1756144897024,1.20573768,112560.0,112550.0,0.01074931]
[1756144897491,1.20573768,112560.0,112550.0,0.00774931]
[1756144897914,1.20573768,112560.0,112550.0,0.00974931]
[1756144898338,1.20573768,112560.0,112550.0,0.00767931]
[1756144899412,1.20573768,112560.0,112550.0,0.00974931]
[1756144899846,1.20573768,112560.0,112550.0,0.00767931]
[1756144900499,1.20888768,112560.0,112550.0,0.00767931]
[1756144901429,1.20888875,112560.0,112550.0,0.00567931]
[1756144901862,6.08214075,112560.0,112550.0,0.00067931]
[1756144902051,7.36463275,112560.0,112550.0,0.00067931]
[1756144902327,7.23180578,112560.0,112550.0,0.00367931]
[1756144902541,6.54266483,112560.0,112550.0,0.00067931]
[1756144902759,6.59806343,112560.0,112550.0,0.00067931]
[1756144902980,6.64001462,112560.0,112550.0,0.00267931]
[1756144903201,6.63801462,112560.0,112550.0,0.00067931]
[1756144903640,6.64001462,112560.0,112550.0,0.00367931]
[1756144903885,6.63901462,112560.0,112550.0,0.00067931]
[1756144904066,7.39380592,112560.0,112550.0,0.00067931]
[1756144904564,7.39580592,112560.0,112550.0,0.00067931]
[1756144905163,7.39680592,112560.0,112550.0,0.00267931]
[1756144905378,7.40032992,112560.0,112550.0,0.00267931]
[1756144905596,7.414241,112560.0,112550.0,0.00267931]
[1756144905812,7.48651802,112560.0,112550.0,0.00267931]
[1756144906028,7.4141762,112560.0,112550.0,0.00267931]
[1756144906494,7.4141771,112560.0,112550.0,0.00267931]
[1756144906937,7.4140971,112560.0,112550.0,0.00267931]
[1756144907187,7.2607771,112560.0,112550.0,0.00267931]
[1756144907392,6.57143615,112560.0,112550.0,0.00267931]
[1756144907820,6.41811615,112560.0,112550.0,0.00267931]
[1756144908042,6.57143615,112560.0,112550.0,0.00267931]
[1756144908254,6.41811615,112560.0,112550.0,0.00267931]
[1756144908442,6.6582658,112560.0,112550.0,0.00267931]
[1756144908701,6.5049858,112560.0,112550.0,0.00267931]
[1756144908923,6.6582658,112560.0,112550.0,0.00267931]
[1756144909136,6.65826316,112560.0,112550.0,0.00267931]
[1756144909572,6.68969421,112560.0,112550.0,0.00267931]
[1756144909792,6.57135351,112560.0,112550.0,0.00267931]
[1756144910026,6.57131351,112560.0,112550.0,0.00267931]
[1756144910253,6.57127351,112560.0,112550.0,0.00267931]
[1756144911322,6.41811351,112560.0,112550.0,0.00267931]
[1756144911538,6.57127351,112560.0,112550.0,0.00267931]
[1756144911979,6.57027351,112560.0,112550.0,0.00067931]
[1756144912220,6.55435559,112560.0,112550.0,0.00067931]
[1756144912490,6.55535559,112560.0,112550.0,0.00267931]
[1756144912718,6.39904559,112560.0,112550.0,0.00474931]
[1756144912944,6.39904559,112560.0,112550.0,0.00791931]
[1756144913166,6.52445857,112560.0,112550.0,0.00791931]
[1756144913602,6.518235,112560.0,112550.0,0.00791931]
[1756144913825,6.520265,112560.0,112550.0,0.00791931]
[1756144914045,6.520265,112560.0,112550.0,0.00474931]
[1756144914272,6.53949017,112560.0,112550.0,0.00474931]
[1756144914498,6.47927381,112560.0,112550.0,0.00474931]
[1756144915128,6.48549538,112560.0,112550.0,0.00474931]
[1756144915350,5.98340033,112560.0,112550.0,0.00780931]
[1756144915568,6.14946718,112560.0,112550.0,0.00267931]
[1756144916278,6.48946718,112560.0,112550.0,0.00267931]
[1756144916539,6.3364269,112560.0,112550.0,0.00267931]
[1756144916758,6.4895869,112560.0,112550.0,0.00267931]
[1756144917608,6.3344569,112560.0,112550.0,0.00483931]
[1756144917815,6.3344569,112560.0,112550.0,0.00789931]
[1756144917816,6.4875369,112560.0,112550.0,0.00789931]
[1756144918782,6.48753696,112560.0,112550.0,0.00789931]
[1756144919319,6.48934696,112560.0,112550.0,0.00483931]
[1756144920210,6.48934696,112560.0,112550.0,0.00267931]
[1756144920459,6.49229696,112560.0,112550.0,0.00267931]
[1756144920684,6.48926696,112560.0,112550.0,0.00267931]
[1756144922246,6.47535659,112560.0,112550.0,0.00267931]
[1756144923243,6.48987785,112560.0,112550.0,0.00267931]
[1756144924086,6.47328775,112560.0,112550.0,0.00267931]
[1756144924299,6.48988493,112560.0,112550.0,0.00267931]
[1756144924526,6.33688493,112560.0,112550.0,0.00267931]
[1756144924738,6.48993788,112560.0,112550.0,0.00267931]
[1756144925232,6.50384811,112560.0,112550.0,0.00267931]
[1756144925506,6.50203811,112560.0,112550.0,0.00789931]
[1756144925720,5.50011337,112560.0,112550.0,0.00789931]
[1756144925964,0.43047866,112560.0,112550.0,0.00789931]
[1756144926604,0.20919866,112560.0,112550.0,0.00789931]
[1756144926858,0.34559324,112560.0,112550.0,0.00789931]
[1756144927858,0.34459324,112560.0,112550.0,0.00689931]
[1756144928060,0.34559324,112560.0,112550.0,0.00889931]
[1756144931456,0.19259324,112560.0,112550.0,0.00889931]
[1756144931679,0.34547324,112560.0,112550.0,0.00889931]
[1756144932338,0.33156301,112560.0,112550.0,0.00889931]
[1756144933323,1.17414396,112560.0,112550.0,0.00889931]
[1756144933803,1.17410396,112560.0,112550.0,0.00889931]
[1756144935433,1.18801297,112560.0,112550.0,0.00889931]
[1756144936089,6.11528723,112560.0,112550.0,0.00367931]
[1756144936313,6.08381618,112560.0,112550.0,0.00367931]
[1756144936535,6.42749618,112560.0,112550.0,0.00367931]
[1756144936988,6.44203093,112560.0,112550.0,0.00367931]
[1756144937908,6.46117028,112560.0,112550.0,0.00367931]
[1756144938822,6.30841028,112560.0,112550.0,0.00367931]
[1756144939309,6.46113028,112560.0,112550.0,0.00367931]
[1756144940017,6.29180103,112560.0,112550.0,0.00367931]
[1756144940266,5.46278689,112560.0,112550.0,0.00367931]
[1756144940478,6.46117784,112560.0,112550.0,0.00367931]
[1756144940957,6.50103239,112560.0,112550.0,0.00367931]
[1756144941843,5.50561144,112560.0,112550.0,0.00367931]
[1756144942054,6.50103239,112560.0,112550.0,0.00367931]
[1756144942265,6.48712338,112560.0,112550.0,0.00367931]
[1756144942487,6.33436338,112560.0,112550.0,0.00367931]
[1756144942715,6.33139338,112560.0,112550.0,0.00367931]
[1756144942931,6.48403338,112560.0,112550.0,0.00583931]
[1756144943142,6.45290846,112560.0,112550.0,0.00583931]
[1756144943375,6.4612236,112560.0,112550.0,0.00367931]
[1756144944026,6.46122465,112560.0,112550.0,0.00367931]
[1756144944469,6.46114465,112560.0,112550.0,0.00889931]
[1756144944697,6.4466011,112560.0,112550.0,0.00889931]
[1756144945353,6.4466011,112560.0,112550.0,0.00367931]
[1756144945578,6.40674655,112560.0,112550.0,0.00367931]
[1756144945795,6.42065647,112560.0,112550.0,0.00367931]
[1756144946954,6.42362647,112560.0,112550.0,0.00367931]
[1756144947415,5.57807552,112560.0,112550.0,0.00367931]
[1756144947635,6.44224705,112560.0,112550.0,0.00367931]
[1756144948095,6.45055693,112560.0,112550.0,0.00367931]
[1756144948319,6.450558,112560.0,112550.0,0.00367931]
[1756144948693,6.45976104,112560.0,112550.0,0.00367931]
[1756144949576,6.47890965,112560.0,112550.0,0.00367931]
[1756144951953,6.47585965,112560.0,112550.0,0.00367931]
[1756144952848,6.46131566,112560.0,112550.0,0.00367931]
[1756144953094,6.47587022,112560.0,112550.0,0.00367931]
[1756144953529,6.32331022,112560.0,112550.0,0.00367931]
[1756144953749,6.30416161,112560.0,112550.0,0.00367931]
[1756144953972,6.45467178,112560.0,112550.0,0.00895931]
[1756144954193,5.59046025,112560.0,112550.0,0.00895931]
[1756144954406,5.42347168,112560.0,112550.0,0.00895931]
[1756144954834,6.44008321,112560.0,112550.0,0.00895931]
[1756144955068,5.94764321,112560.0,112550.0,0.00895931]
[1756144955277,6.08617329,112560.0,112550.0,0.00895931]
[1756144955895,6.11289729,112560.0,112550.0,0.00895931]
[1756144956114,1.08620529,112560.0,112550.0,0.00895931]
[1756144956338,0.22203704,112560.0,112550.0,0.00895931]
[1756144956546,0.22203704,112560.0,112550.0,0.18665811]
[1756144956547,0.20540701,112560.0,112550.0,0.18665811]
[1756144956755,0.33112301,112560.0,112550.0,0.18665811]
[1756144957837,0.17768301,112560.0,112550.0,0.18365811]
[1756144958075,0.33012301,112560.0,112550.0,0.18365811]
[1756144958278,0.33112301,112560.0,112550.0,0.18765811]
[1756144958505,0.19259145,112560.0,112550.0,0.18765811]
[1756144958738,0.01490844,112560.0,112550.0,0.18765811]
[1756144958895,0.19259145,112560.0,112550.0,0.18765811]
[1756144959478,0.19259145,112560.0,112550.0,0.18965811]
[1756144961102,1.21472861,112570.0,112550.0,0.18965811]
[1756144961316,0.17768301,112560.0,112550.0,0.18965811]
[1756144961762,1.22863683,112570.0,112550.0,0.18965811]
[1756144961763,0.2120653,112570.0,112550.0,0.18965811]
[1756144961979,0.17768301,112560.0,112550.0,0.18247811]
[1756144962196,0.3643453,112570.0,112550.0,0.18047811]
[1756144962375,1.22951683,112570.0,112550.0,0.18247811]
[1756144962633,1.22951683,112570.0,112560.0,0.00318]
[1756144962856,0.3653453,112570.0,112560.0,0.00528]
[1756144963082,1.22947683,112570.0,112560.0,0.18296301]
[1756144963736,1.21556861,112570.0,112560.0,0.18296301]
[1756144963954,1.18884661,112570.0,112560.0,0.18296301]
[1756144964122,1.18780661,112570.0,112560.0,0.18296301]
[1756144964538,1.18880661,112570.0,112560.0,0.18596301]
[1756144965539,1.19095661,112570.0,112560.0,0.00928]
[1756144965792,1.18872661,112570.0,112560.0,0.00928]
[1756144965983,1.19384661,112570.0,112560.0,0.004]
[1756144966544,1.26865274,112570.0,112560.0,0.004]
[1756144966747,1.23718169,112570.0,112560.0,0.004]
[1756144971252,7.35538409,112570.0,112560.0,0.004]
[1756144971493,7.38075706,112570.0,112560.0,0.004]
[1756144972397,7.37144962,112570.0,112560.0,0.001]
[1756144972582,7.37976253,112570.0,112560.0,0.001]
[1756144972802,7.38076253,112570.0,112560.0,0.003]
[1756144973023,7.39470652,112570.0,112560.0,0.002]
[1756144973289,7.3807649,112570.0,112560.0,0.002]
[1756144973951,7.34929385,112570.0,112560.0,0.002]
[1756144975214,0.51768301,112560.0,112550.0,0.00067931]
[1756144975429,7.30234548,112560.0,112550.0,0.00067931]
[1756144975646,7.33381653,112560.0,112550.0,0.00067931]
[1756144975866,7.35445794,112560.0,112550.0,1e-08]
[1756144976314,7.38592899,112560.0,112550.0,0.00100001]
[1756144976965,7.39984012,112560.0,112550.0,1e-08]
[1756144977259,7.40084012,112560.0,112550.0,0.00300001]
[1756144977706,7.40893602,112560.0,112550.0,1e-08]
[1756144977917,7.40993602,112560.0,112550.0,0.00200001]
[1756144978815,7.44143125,112560.0,112550.0,0.00200001]
[1756144979034,7.44143125,112560.0,112550.0,1e-08]
[1756144979259,0.54919402,112550.0,112540.0,0.0002]
[1756144979466,6.5297363,112550.0,112540.0,0.00034365]
[1756144979889,6.5564663,112550.0,112540.0,0.00034365]
[1756144980327,6.5564663,112550.0,112540.0,0.00240365]
[1756144980328,5.50570955,112550.0,112540.0,0.00240365]
[1756144980548,6.52280108,112550.0,112540.0,0.00534365]
[1756144981027,6.52597108,112550.0,112540.0,0.00534365]
[1756144981516,5.4900908,112550.0,112540.0,0.00534365]
[1756144981732,6.52279224,112550.0,112540.0,0.00534365]
[1756144982375,6.37087224,112550.0,112540.0,0.00534365]
[1756144982576,6.52279224,112550.0,112540.0,0.00534365]
[1756144983860,6.60966189,112550.0,112540.0,0.00534365]
[1756144984071,6.64117525,112550.0,112540.0,0.00534365]
[1756144984309,6.62456534,112550.0,112540.0,0.00534365]
[1756144984602,6.52278003,112550.0,112540.0,0.00534365]
[1756144984802,6.37086003,112550.0,112540.0,0.00534365]
[1756144985016,6.52073003,112550.0,112540.0,0.01053365]
[1756144985265,5.5046385,112550.0,112540.0,0.01053365]
[1756144985483,1.64647803,112550.0,112540.0,0.01053365]
[1756144985698,0.7823065,112550.0,112540.0,0.01053365]
[1756144985924,0.4423065,112550.0,112540.0,0.01053365]
[1756144986152,0.4257088,112550.0,112540.0,0.01053365]
[1756144986641,1.28988033,112550.0,112540.0,0.01053365]
[1756144986877,1.06960033,112550.0,112540.0,0.01053365]
[1756144987093,0.3306188,112550.0,112540.0,0.18824824]
[1756144987536,0.3306188,112550.0,112540.0,0.01053365]
[1756144987772,0.3306188,112550.0,112540.0,0.18824824]
[1756144987997,0.001,112550.0,112540.0,0.18824824]
[1756144988499,0.1786988,112550.0,112540.0,0.18824824]
[1756144988736,0.1786988,112550.0,112540.0,0.01053365]
[1756144989204,1.04287033,112550.0,112540.0,0.01053365]
[1756144989421,0.1786988,112550.0,112540.0,0.01053365]
[1756144989637,0.1776988,112550.0,112540.0,0.00553365]
[1756144989853,0.1786988,112550.0,112540.0,0.00853365]
[1756144990073,0.1786988,112550.0,112540.0,0.01053365]
[1756144990528,0.1786988,112550.0,112540.0,0.00853365]
[1756144991004,0.1786988,112550.0,112540.0,0.01153365]
[1756144991462,1.04287033,112550.0,112540.0,0.01153365]
[1756144993918,0.3308988,112550.0,112540.0,0.18924824]
[1756144994132,0.001,112550.0,112540.0,0.18924824]
[1756144994354,0.1786988,112550.0,112540.0,0.18924824]
[1756144996229,0.1786988,112550.0,112540.0,0.01153365]